Cogmind - Beta 15 @@@ ROGUE MODE // 2025.06.03 @ 16:51:58 Player: kaj Result: Destroyed by as-52010 with Assembled Heavy Rifle Performance ------------- Evolutions (0) 0 Regions Visited (4) 800 Robots Destroyed (10) 50 Value Destroyed (228) 228 Prototype IDs (23) 460 Alien Tech Used (0) 0 Bonus (300) 300 TOTAL SCORE: 1838 Bonus ------- Aligned with FarCom 300 Cogmind --------- Core Integrity 0/250 Matter 260/300 Energy 124/240 System Corruption 1% Temperature Cool (44) Movement Core (150) Ox2 Location -9/Mines Parts ------- > --- POWER (1) -------- Nuclear Core > --- PROPULSION (2) --- (None) > --- UTILITY (2) ------ (None) > --- WEAPON (2) ------- (None) > --- INVENTORY (5) ---- Ion Engine Scrap Suit High-capacity Matter Pod (200) Trap Reconfigurator Peak State ------------ > --- POWER ------------ Ion Engine > --- PROPULSION ------- Advanced Treads Compact Wheel > --- UTILITY ---------- High-capacity Storage Unit Terrain Scanner > --- WEAPON ----------- Medium Laser Assault Rifle > --- INVENTORY -------- Ion Engine Light Ion Engine Nuclear Core Scrap Suit High-capacity Storage Unit Large Matter Pod High-capacity Matter Pod High-capacity Matter Pod Advanced Visual Processing Unit Melee Analysis Suite Light Armor Plating Light Armor Plating Hardlight Generator Trap Reconfigurator Beam Cannon Flak Cannon Heavy Flail [Rating: 13] Favorites ----------- Power Light Ion Engine Engine Light Ion Engine Power Core Nuclear Core Propulsion Compact Wheel Treads Advanced Treads Leg Aluminum Leg Wheel Compact Wheel Utility Terrain Scanner Device Terrain Scanner Storage High-capacity Storage Unit Protection Light Armor Plating Weapon Assault Rifle Energy Gun Medium Laser Energy Cannon Beam Cannon Ballistic Gun Assault Rifle Ballistic Cannon Flak Cannon Build | -11 -10 -10 -10 -9 ------- Run | Yrd Mat Min Exi Min Slots Evolved . | . . . . . Power . | . . . . . Propulsion . | . . . . . Utility . | . . . . . Weapon . | . . . . . Parts Attached 13 | 4 2 1 . 6 Power 2 | . . 1 . 1 Engine 1 | . . 1 . . Core 1 | . . . . 1 Reactor . | . . . . . Propulsion 5 | 3 . . . 2 Treads 2 | 1 . . . 1 Leg . | . . . . . Wheel 3 | 2 . . . 1 Hover . | . . . . . Flight . | . . . . . Utility 3 | . 2 . . 1 Device 1 | . 1 . . . Storage 1 | . 1 . . . Processor . | . . . . . Hackware . | . . . . . Protection 1 | . . . . 1 Artifact . | . . . . . Weapon 3 | 1 . . . 2 Energy Gun 1 | 1 . . . . Energy Cannon 1 | . . . . 1 Ballistic Gun . | . . . . . Ballistic Cannon 1 | . . . . 1 Launcher . | . . . . . Special Weapon . | . . . . . Impact Weapon . | . . . . . Slashing Weapon . | . . . . . Piercing Weapon . | . . . . . Special Melee Weapon . | . . . . . Unidentified Prototypes . | . . . . . Parts Lost 10 | . . . . 10 Power 1 | . . . . 1 Propulsion 3 | . . . . 3 Utility 2 | . . . . 2 Weapon 4 | . . . . 4 Highest Loss Streak 10 | . . . . 10 To Critical Strikes . | . . . . . Average Backups 13 | 6 6 14 18 16 Power 2 | 1 1 2 3 3 Propulsion 1 | 4 . 1 2 . Utility 5 | . 2 6 8 10 Weapon 3 | 1 1 4 5 2 Tool/Special . | . . . . . Unused Backups 19 | . 3 1 2 13 Power 2 | . 1 . . 1 Propulsion . | . . . . . Utility 12 | . 1 1 . 10 Weapon 5 | . 1 . 2 2 Tool/Special . | . . . . . Average Slot Usage (%) 83 | . 84 85 85 65 Engine 13 | . 14 14 14 7 Wheel 16 | . 21 14 14 7 Device 10 | . 5 14 14 7 Storage 13 | . 14 14 14 12 Energy Gun 13 | . 14 14 14 7 Ballistic Gun 13 | . 14 14 14 7 Peak Build Rating 13 | 6 7 10 10 13 Average Rating 8 | 5 6 8 9 10 On Entrance 7 | 6 6 7 10 10 Naked Turns . | . . . . . Heaviest Build 50 | 12 48 50 50 50 Greatest Support 32 | 26 26 16 16 32 Greatest Overweight (x) 4 | . 2 3 3 4 Average Overweight (x) 1 | . . 2 3 2 Largest Inventory Capacity 20 | 8 20 20 20 20 Average Capacity 16 | 8 11 20 20 18 Most Carried 20 | 6 12 20 20 20 Average Carried 13 | 3 6 15 19 16 Final Capacity 20 | 8 20 20 20 5 Final Carried 20 | 2 12 20 20 5 Class Distribution -------------------- 100% | Mutant Dominant Class ---------------- Mutant | -10/Materials Mutant | -10/Mines Mutant | -10/Exiles Mutant | -9/Mines Resources | -11 -10 -10 -10 -9 ----------- Run | Yrd Mat Min Exi Min Matter Collected 602 | 195 168 . 220 19 Remotely . | . . . . . Salvage Created 271 | . 168 . . 103 Parts 16 | . 10 . . 6 Haulers Intercepted . | . . . . . Recyclers Shooed . | . . . . . Parts Field Recycled . | . . . . . Retrieved Matter . | . . . . . Parts Self-Destructed . | . . . . . Prevented . | . . . . . Kills | -11 -10 -10 -10 -9 ------- Run | Yrd Mat Min Exi Min Combat Hostiles Destroyed 13 | . 6 . . 7 Guns 9 | . 6 . . 3 Cannons 4 | . . . . 4 Classes Destroyed 4 | . 2 . . 2 Swarmer 6 | . 3 . . 3 Grunt 3 | . 3 . . . Demolisher 1 | . . . . 1 Assembled 3 | . . . . 3 Best Kill Streak 4 | . 4 . . 4 Combat Bots Only 4 | . 4 . . 4 Max Kills in Single Turn 2 | . 1 . . 2 Gunslinging 1 | . . . . 1 Exploded . | . . . . . Melee . | . . . . . Uniques/NPCs Destroyed . | . . . . . Combat | -11 -10 -10 -10 -9 -------- Run | Yrd Mat Min Exi Min Hostile Shots Fired 103 | . 22 . . 81 Missed 28 | . 6 . . 22 Hits 75 | . 16 . . 59 Melee 2 | . . . . 2 Projectile 73 | . 16 . . 57 AOE 13 | . . . . 13 Damage Taken 1316 | . 180 . . 1136 Core 257 | . 30 . . 227 Absorbed by Shields . | . . . . . Core Remaining (%) 100 | 100 . . . . Volleys Fired 32 | . 17 . . 15 Largest 2 | . 2 . . 2 Hottest 97 | . 70 . . 97 Shots Fired 54 | . 33 . . 21 Gun 40 | . 33 . . 7 Cannon 14 | . . . . 14 Launcher . | . . . . . Special . | . . . . . Kinetic 24 | . 16 . . 8 Thermal 30 | . 17 . . 13 Explosive . | . . . . . Electromagnetic . | . . . . . Robot Hit Streak 8 | . 8 . . 6 Robot Miss Streak 6 | . 6 . . 5 Penetration Max . | . . . . . Secondary Targets 1 | . . . . 1 Max Gunslinging Chain 1 | . . . . 1 Shots Hit Robots 35 | . 17 . . 18 Core Hits 28 | . 10 . . 18 Critical Kills . | . . . . . Critical Parts Destroyed 1 | . . . . 1 Critical Strikes 2 | . 1 . . 1 Burn 1 | . 1 . . . Destroy 1 | . . . . 1 Melee Attacks . | . . . . . Impact . | . . . . . Slashing . | . . . . . Piercing . | . . . . . Sneak Attacks . | . . . . . Combat Hostiles . | . . . . . Follow-up Attacks . | . . . . . Damage Inflicted 491 | . 213 . . 278 Guns 287 | . 213 . . 74 Cannons 204 | . . . . 204 Explosions . | . . . . . Melee . | . . . . . Ramming . | . . . . . Kinetic 225 | . 111 . . 114 Thermal 266 | . 102 . . 164 Explosive . | . . . . . Electromagnetic . | . . . . . Impact . | . . . . . Slashing . | . . . . . Piercing . | . . . . . Highest Corruption 1 | . 1 1 1 1 Average Corruption 1 | . 1 1 1 1 Corruption Purged . | . . . . . Corruption Blocked . | . . . . . Effects 11 | . 5 2 3 1 Message Errors 4 | . 1 2 1 . Matter Fused 1 | . . . 1 . Heat Flow Errors 1 | . . . 1 . Parts Rejected 1 | . 1 . . . Data Loss (minor) 2 | . 2 . . . Data Loss (major) 1 | . . . . 1 Weapon Failures 1 | . 1 . . . Overload Shots . | . . . . . Overflow Damage . | . . . . . Projectiles . | . . . . . Explosions . | . . . . . Melee . | . . . . . Knockbacks 3 | . . . . 3 Impact . | . . . . . Kinetic 3 | . . . . 3 Secondary . | . . . . . Self-Inflicted Damage . | . . . . . Shots . | . . . . . Rammed . | . . . . . Targets Rammed . | . . . . . Kicked . | . . . . . Crushed . | . . . . . Highest Temperature 131 | . 117 . 113 131 Average Temperature 45 | . 42 . 63 47 Received Heat Transfer 42 | . 42 . . . Siege Activations . | . . . . . Martial Activations . | . . . . . Shielding Activations . | . . . . . Robots Disrupted . | . . . . . Combat Hostiles . | . . . . . Robots Corrupted . | . . . . . Combat Hostiles . | . . . . . Parts Fried . | . . . . . Impact Corruptions . | . . . . . Robots Melted . | . . . . . Combat Hostiles . | . . . . . Parts Melted . | . . . . . Heat Transferred 740 | . 370 . . 370 Parts Sabotaged . | . . . . . Parts Stolen . | . . . . . Parts Stripped . | . . . . . Power Chain Reactions . | . . . . . Alert | -11 -10 -10 -10 -9 ------- Run | Yrd Mat Min Exi Min Maximum Alert Level . | . . . . . Low Security (%) 100 | 100 100 100 . 100 Level 1 . | . . . . . Level 2 . | . . . . . Level 3 . | . . . . . Level 4 . | . . . . . Level 5 . | . . . . . High Security . | . . . . . Max Security . | . . . . . Peak Influence 80 | . 80 14 . 70 Initial 14 | . . 14 . . Average 18 | . 30 1 . 27 Influence Increases 252 | . 162 . . 90 Destroy 0b10 Robot/C 200 | . 120 . . 80 Destroy Leader 40 | . 30 . . 10 Successful Hack 11 | . 11 . . . Destroy Structure 1 | . 1 . . . Influence Decreases 252 | . 124 38 . 90 Entered New Map 24 | . . 24 . . Time Decay 158 | . 124 14 . 20 Lost Part 70 | . . . . 70 Squads Dispatched 2 | . 1 1 . . Investigation 1 | . . 1 . . Extermination . | . . . . . Reinforcement 1 | . 1 . . . Assault . | . . . . . Garrison . | . . . . . Intercept . | . . . . . Searches Triggered . | . . . . . Construction Impeded . | . . . . . Haulers Reinforced . | . . . . . Active Scanning Responses . | . . . . . Cargo Convoy Interrupts . | . . . . . Stealth | -11 -10 -10 -10 -9 --------- Run | Yrd Mat Min Exi Min Distress Signals 1 | . 1 . . . Communications Jammed . | . . . . . Distress Signals . | . . . . . Times Spotted 33 | . 13 . . 20 Peak Tracking Total 8 | . 4 . . 8 Tactical Retreats . | . . . . . Traps | -11 -10 -10 -10 -9 ------- Run | Yrd Mat Min Exi Min Traps Triggered 1 | . 1 . . . Indirectly . | . . . . . Trap Hack Attempts . | . . . . . Triggered . | . . . . . Disarmed . | . . . . . Reprogrammed . | . . . . . Reused . | . . . . . Traps Extracted . | . . . . . Installed . | . . . . . Triggered . | . . . . . Machines | -11 -10 -10 -10 -9 ---------- Run | Yrd Mat Min Exi Min Machines Disabled . | . . . . . Max in Single Turn . | . . . . . Machines Repaired . | . . . . . Machines Dismantled . | . . . . . Machines Sabotaged . | . . . . . Overloaded Fab Kills . | . . . . . Hacking | -11 -10 -10 -10 -9 --------- Run | Yrd Mat Min Exi Min Machines Accessed 7 | . 5 1 1 . Terminals 5 | . 5 . . . Fabricators . | . . . . . Repair Stations . | . . . . . Recycling Units . | . . . . . Scanalyzers . | . . . . . Garrison Access . | . . . . . Total Hacks 12 | . 10 1 1 . Successful 4 | . 2 1 1 . Failed 7 | . 7 . . . Catastrophic 2 | . 2 . . . Database Lockouts 1 | . 1 . . . Manual 9 | . 8 . 1 . Terminals 10 | . 10 . . . Fabricators . | . . . . . Repair Stations . | . . . . . Recycling Units . | . . . . . Scanalyzers . | . . . . . Garrison Access . | . . . . . Terminal Hacks 4 | . 2 1 1 . Robot Analysis 1 | . 1 . . . Open Door 1 | . . 1 . . Zone Layout 1 | . 1 . . . Proto ID Catalog 1 | . . . 1 . Fabricator Hacks . | . . . . . Repair Station Hacks . | . . . . . Recycling Unit Hacks . | . . . . . Scanalyzer . | . . . . . Garrison Access Hacks . | . . . . . Unauthorized Hacks . | . . . . . Terminals . | . . . . . Fabricators . | . . . . . Repair Stations . | . . . . . Recycling Units . | . . . . . Scanalyzers . | . . . . . Garrison Access . | . . . . . Data Cores Recovered . | . . . . . Used . | . . . . . Hacking Detections 5 | . 5 . . . Full Trace Events 1 | . 1 . . . Feedback Events . | . . . . . Feedback Blocked . | . . . . . Robot Schematics Acquired . | . . . . . Robots Built . | . . . . . Authchips . | . . . . . Time . | . . . . . Total Robot Build Rating . | . . . . . Part Schematics Acquired . | . . . . . Parts Built . | . . . . . Authchips . | . . . . . Time . | . . . . . Total Part Build Rating . | . . . . . Parts Repaired . | . . . . . Time . | . . . . . Parts Recycled . | . . . . . Recycled Matter . | . . . . . Retrieved Matter . | . . . . . Retrieved Components . | . . . . . Parts Scanalyzed . | . . . . . Part Schematics Acquired . | . . . . . Parts Damaged . | . . . . . Bothacking | -11 -10 -10 -10 -9 ------------ Run | Yrd Mat Min Exi Min Used RIF Installer . | . . . . . Robots Hacked . | . . . . . Non-combat . | . . . . . Combat . | . . . . . Robot Hacks Applied . | . . . . . Relay Couplers Released . | . . . . . Fabnet Peak Effective % . | . . . . . Robots Rewired . | . . . . . Allies Hacked . | . . . . . Hacks Repelled . | . . . . . Allies | -11 -10 -10 -10 -9 -------- Run | Yrd Mat Min Exi Min Total Allies . | . . . . . Largest Group . | . . . . . Highest-Rated Group . | . . . . . Highest-Rated Ally . | . . . . . Total Orders . | . . . . . Ally Attacks . | . . . . . Total Damage . | . . . . . Kills . | . . . . . Allies Corrupted . | . . . . . Allies Melted . | . . . . . Intel | -11 -10 -10 -10 -9 ------- Run | Yrd Mat Min Exi Min Active Infowar (turns) 868 | . 163 312 360 33 Terrain 868 | . 163 312 360 33 Robot Analysis Total 1 | . 1 . . . Derelict Logs Recovered . | . . . . . Drone Launches . | . . . . . Drone Recoveries . | . . . . . Exploration | -11 -10 -10 -10 -9 ------------- Run | Yrd Mat Min Exi Min Turns Passed 1151 | 7 405 312 360 67 Spaces Moved 793 | 1 310 219 246 17 Core 3 | . . . . 3 Treads . | . . . . . Legs . | . . . . . Wheels 790 | 1 310 219 246 14 Hover . | . . . . . Flight . | . . . . . Fastest Speed 90 | 90 90 130 145 115 Average Speed 124 | 90 100 135 145 147 Slowest Speed 250 | 90 130 145 145 250 Overloaded Moves . | . . . . . Propulsion Burnouts . | . . . . . Robots Hopped . | . . . . . Potential Cave-ins . | . . . . . Cave-ins Triggered . | . . . . . Exploration Rate (%) 38 | 2 59 53 64 14 Regions Visited 4 Branch Regions 3 Pre-discovered Areas . | . . . . . Known Exits Taken . | . . . . . Unknown Exits Taken 4 | 1 1 1 1 . Scrap Searched . | . . . . . Spaces Dug . | . . . . . Terrain Destroyed . | . . . . . Melee . | . . . . . Projectile . | . . . . . AOE . | . . . . . Terrain Rammed . | . . . . . Walls Destroyed . | . . . . . Machines Disabled . | . . . . . Actions | -11 -10 -10 -10 -9 --------- Run | Yrd Mat Min Exi Min Total 903 | 8 369 236 251 39 Wait 37 | . 30 7 . . Move 789 | . 309 218 245 17 Hop . | . . . . . Pick Up 21 | . 10 8 3 . Fast Attach 1 | . 1 . . . Attach 9 | 3 . . . 6 Detach . | . . . . . Swap 3 | 1 1 1 . . Drop 11 | 4 1 2 3 1 Fire 32 | . 17 . . 15 Melee . | . . . . . Ram . | . . . . . Kick . | . . . . . Crush . | . . . . . Escape Stasis . | . . . . . Rewire . | . . . . . Trap . | . . . . . Miscellaneous . | . . . . . Route ------- -11/Scrapyard -10/Materials (discovered 2 exits: [Mat] / *Min) -10/Mines (discovered 2 exits: [*Mat] / *Exi) -10/Exiles (discovered 2 exits: [*Min x2]) -9/Mines History --------- Turn | Location | Event 8 | -11/Scrapyard | Discovered new exit (range 0) 8 | -11/Scrapyard | Entered Materials 220 | -10/Materials | Discovered new exit (range 14) 309 | -10/Materials | Discovered new exit (range 14) 320 | -10/Materials | Build established: Mutant 372 | -10/Materials | Central database locked down 413 | -10/Materials | Entered Mines 417 | -10/Mines | Discovered new exit (range 13) 547 | -10/Mines | Found a Scrap Suit stashed away for nefarious purposes 562 | -10/Mines | Found Scrap Suit 588 | -10/Mines | Met a Derelict shopkeep closing up shop 718 | -10/Mines | Deemed a non-threat by the Exiles lab entrance 720 | -10/Mines | Discovered new exit (range 5) 725 | -10/Mines | Entered Exiles 750 | -10/Exiles | Discovered new exit (range 15) 768 | -10/Exiles | Met 8R-AWN 792 | -10/Exiles | Met EX-HEX 833 | -10/Exiles | Met EX-BIN 850 | -10/Exiles | Aligned with FarCom system 852 | -10/Exiles | Given EX-Vault access code 886 | -10/Exiles | Opened EX-Vault 899 | -10/Exiles | Found Trap Reconfigurator 926 | -10/Exiles | Warned to stay clear of 0b10 Research branches 947 | -10/Exiles | Exiles lab attacked by MAIN.C 1072 | -10/Exiles | Discovered new exit (range 11) 1085 | -10/Exiles | Left Exiles lab with Trap Reconfigurator 1085 | -10/Exiles | Entered Mines 1086 | -9/Mines | Assembled infested the area 1129 | -9/Mines | Core integrity fell below 50% 1146 | -9/Mines | Core integrity fell below 20% 1152 | -9/Mines | Destroyed by as-52010 with Assembled Heavy Rifle Last Messages --------------- 01120_ as-22053 knocked back. 01121_ D-53 Grenadier system corrupted by crushing effect. 01122_ T-07 Excavator is excavating. 01123_ as-27314 destroyed. 01124_ The unstable cave ceiling collapses. 01126_ T-07 Excavator is excavating. 01128_ D-53 Grenadier misfires. 01131_ Flak Cannon destroyed. 01132_ D-53 Grenadier destroyed. 01134_ as-22053 destroyed. 01138_ as-12168 destroyed. 01139_ System corrupted: Substantial component data lost. 01142_ Adv. Treads destroyed. 01142_ as-33951 destroyed. 01142_ U-05 Engineer destroyed. 01144_ T-07 Excavator is excavating. 01147_ Dropped Hcp. Storage Unit. 01148_ Beam Cannon destroyed. 01148_ Lgt. Armor Plating destroyed. 01150_ Knocked back. Map ----- +----------------------------------------------------+ | | | | | ?????????????????????????????????????????????????? | | ???????????????????????????????#?????????????????? | | ?????????????????????????????????????????????????? | | ???????????????????????????####??????????????????? | | ????????????????????????### ??????????????????? | | ??????????????????? ???## ???????????????????? | | ?????????????????# ???# #???????????????????? | | ?????????????????? ??# %##??????????????????? | | ??????????????????# ??# ###????????????????? | | ??????????????????# ?## ##???????????????? | | ??????????????????# ## #???????????????? | | ?????????????????## #### ### ???????? | | ??????????######## $ #??????? | | ????????? k ???????? | | ????????? % % % #??#???????????? | | ????????????### ##%% ! [ aa ##??????????????? | | ??????????????????# !%| # #???????????????? | | ??????????????????# ! % ##???????????????? | | ?????????????????## /!* ##????????????????? | | ?????????????????# !!a! #??#?? ?????????? | | ?????????????????## !!! ### #????????? | | ??????????#???????# #?????????? | | ??????????????????# #?????????? | | ??????????????????## @ ### #?????????? | | ???????????????????### ###???## ?????????? | | ?????????????????????## ##????????????????????? | | ??????????????????????# ?????????????????????? | | ?????????????????????? #????????????????????? | | ?????????????????????# ##????????????????????? | | ?????????????????????# ####?????????????????????? | | ?????????????????????# ?????????????????????????? | | ?????????????????????# ?????????????????????????? | | ?????????????????????# ?????????????????????????? | | ?????????????????????# ?????????????????????????? | | ?????????????????????# ?????????????????????????? | | ?????????????????????###?????????????????????????? | | ?????????????????????????????????????????????????? | | ?????????????????????????????????????????????????? | | ?????????????????????????????????????????????????? | | ?????????????????????????????????????????????????? | | ?????????????????????????????????????????????????? | | ?????????????????????????????????????????????????? | | ?????????????????????????????????????????????????? | | ?????????????????????????????????????????????????? | | ?????????????????????????????????????????????????? | | ?????????????????????????????????????????????????? | | ?????????????????????????????????????????????????? | | ?????????????????????????????????????????????????? | +----------------------------------------------------+ Best States ------------- Heat Dissipation 25 Energy Generation 14 Energy Capacity 250 Matter Stores 300 Matter Capacity 300 Sight Range 16 Terrain Scan Range 14 Terrain Scan Density 10 Armor Coverage 150 Evasion (%) 42 Recoil Reduction 1 Item Schematics ----------------- None Robot Schematics ------------------ None Fabricated ------------ Nothing Repaired ---------- Nothing Alien Tech Used ----------------- None Achievements -------------- None Challenges ------------ None Game ------ Seed MicrowarpSpreadMaul Manual? 0 Play Time 00:12:47 Cumulative 184.7 hours Start 2025.06.03 @ 16:41:19 End 2025.06.03 @ 16:51:58 Sessions 1 Manual Loads 0 Difficulty Rogue Special Mode None Game No. 289 Rogue 289 Adventurer 0 Explorer 0 Win Type - Total 0 Types 0/0/0/0/0/0/0/0/0/0 Lore% 36 Gallery% 53 Achievement% 46 Wizard Run 0 Options --------- Layout 0 ASCII 0 Keyboard 0 Movement Mouse Keybinds 1 Fullscreen 2 Font 18/Terminus Map View 76x50 Zoom Use 0% Tactical HUD 1 Map Filters SATURATION(75) Filters LOW_CONTRAST(23,23,23) Steam 1 RUN: 897aebfc-ff6f-4e15-9fc3-70640ddb3e4b